Cogmind - Beta 9.2 @@@ ROGUE MODE // 2019.11.21 @ 18:21:15 Player: Cassie Rose Result: Destroyed by G-34 Mercenary with Small Laser Performance ------------- Evolutions (0) 0 Regions Visited (1) 200 Robots Destroyed (11) 55 Value Destroyed (171) 171 Prototype IDs (0) 0 Alien Tech Used (0) 0 Bonus (0) 0 TOTAL SCORE: 426 Bonus ------- None Cogmind --------- Core Integrity 0/250 Matter 285/300 Energy 36/125 System Corruption 0% Temperature Cool (6) Movement Core (150) Ox2 Location -10/Materials Parts ------- > --- POWER (1) -------- Light Ion Engine > --- PROPULSION (2) --- (None) > --- UTILITY (2) ------ Improved Terrain Scanner ECM Suite > --- WEAPON (2) ------- Heavy Hammer > --- INVENTORY (4) ---- (None) Peak State ------------ > --- POWER ------------ Light Ion Engine > --- PROPULSION ------- Wheel Compact Wheel > --- UTILITY ---------- Improved Terrain Scanner ECM Suite > --- WEAPON ----------- Particle Cannon Heavy Hammer > --- INVENTORY -------- Light Ion Engine Compact Wheel Improved Terrain Scanner [Rating: 10] Favorites ----------- Power Light Ion Engine Engine Light Ion Engine Propulsion Compact Wheel Wheel Compact Wheel Utility Improved Terrain Scanner Device Improved Terrain Scanner Weapon Heavy Hammer Energy Gun Medium Laser Energy Cannon Particle Cannon Ballistic Gun Light Assault Rifle Impact Weapon Heavy Hammer Build | -11 -10 ------- Run | Scr Mat Slots Evolved . | . . Power . | . . Propulsion . | . . Utility . | . . Weapon . | . . Parts Attached 16 | 8 8 Power 4 | 1 3 Engine 4 | 1 3 Core . | . . Reactor . | . . Propulsion 5 | 4 1 Treads . | . . Leg . | . . Wheel 5 | 4 1 Hover . | . . Flight . | . . Utility 3 | 1 2 Device 3 | 1 2 Storage . | . . Processor . | . . Hackware . | . . Protection . | . . Artifact . | . . Weapon 4 | 2 2 Energy Gun 1 | 1 . Energy Cannon 1 | . 1 Ballistic Gun 1 | 1 . Ballistic Cannon . | . . Launcher . | . . Special Weapon . | . . Impact Weapon 1 | . 1 Slashing Weapon . | . . Piercing Weapon . | . . Special Melee Weapon . | . . Unidentified Prototypes . | . . Parts Lost 7 | . 7 Power 2 | . 2 Propulsion 3 | . 3 Utility 1 | . 1 Weapon 1 | . 1 Highest Loss Streak 6 | . 6 Average Slot Usage (%) 84 | . 84 Engine 13 | . 13 Wheel 26 | . 26 Device 17 | . 17 Energy Gun 1 | . 1 Energy Cannon 10 | . 10 Ballistic Gun 1 | . 1 Impact Weapon 11 | . 11 Naked Turns . | . . Heaviest Build 12 | 7 12 Greatest Support 32 | 26 32 Greatest Overweight (x) 2 | . 2 Average Overweight (x) . | . . Largest Inventory Capacity 4 | 4 4 Average Capacity 4 | 4 4 Most Carried 4 | 3 4 Average Carried 2 | 1 2 Final Capacity 4 | 4 4 Final Carried 3 | 3 . Class Distribution -------------------- 100% | Mutant Dominant Class ---------------- Mutant | -10/Materials Resources | -11 -10 ----------- Run | Scr Mat Matter Collected 342 | 257 85 Remotely . | . . Salvage Created 440 | 119 321 Parts 27 | 15 12 Haulers Intercepted . | . . Recyclers Shooed 2 | . 2 Parts Field Recycled . | . . Retrieved Matter . | . . Parts Self-Destructed . | . . Prevented . | . . Kills | -11 -10 ------- Run | Scr Mat Combat Hostiles Destroyed 5 | . 5 Cannons 4 | . 4 Classes Destroyed 4 | 2 2 Tunneler 3 | 3 . Recycler 3 | 1 2 Swarmer 2 | . 2 Grunt 3 | . 3 Best Kill Streak 3 | 3 3 Combat Bots Only 3 | . 3 Max Kills in Single Turn 1 | 1 1 Gunslinging . | . . Exploded . | . . Melee . | . . Uniques/NPCs Destroyed . | . . Combat | -11 -10 -------- Run | Scr Mat Damage Taken 601 | . 601 Core 257 | . 257 Absorbed by Shields . | . . Core Remaining (%) 100 | 100 . Volleys Fired 29 | 9 20 Largest 2 | 2 2 Hottest 70 | 70 70 Shots Fired 41 | 18 23 Gun 24 | 18 6 Cannon 17 | . 17 Launcher . | . . Special . | . . Kinetic 12 | 9 3 Thermal 29 | 9 20 Explosive . | . . Electromagnetic . | . . Robot Hit Streak 9 | 5 9 Robot Miss Streak 3 | 3 2 Penetration Max . | . . Secondary Targets . | . . Shots Hit Robots 39 | 9 30 Core Hits 11 | 5 6 Critical Hits . | . . Critical Kills . | . . Critical Parts Destroyed . | . . Melee Attacks 16 | . 16 Impact 16 | . 16 Slashing . | . . Piercing . | . . Sneak Attacks 1 | . 1 Combat Hostiles . | . . Follow-up Attacks . | . . Damage Inflicted 730 | 101 629 Guns 131 | 101 30 Cannons 286 | . 286 Explosions . | . . Melee 313 | . 313 Ramming . | . . Kinetic 41 | 23 18 Thermal 376 | 78 298 Explosive . | . . Electromagnetic . | . . Impact 313 | . 313 Slashing . | . . Piercing . | . . Highest Corruption . | . . Average Corruption . | . . Corruption Purged . | . . Overload Shots . | . . Overflow Damage 46 | . 46 Projectiles 6 | . 6 Explosions . | . . Melee 40 | . 40 Knockbacks 2 | . 2 Impact 2 | . 2 Kinetic . | . . Secondary . | . . Self-Inflicted Damage . | . . Shots . | . . Rammed . | . . Targets Rammed . | . . Kicked . | . . Crushed . | . . Highest Temperature 166 | 70 166 Average Temperature 49 | 28 58 Received Heat Transfer 258 | . 258 Siege Activations . | . . Robots Corrupted . | . . Combat Hostiles . | . . Parts Fried 2 | . 2 Impact Corruptions 3 | . 3 Robots Melted . | . . Combat Hostiles . | . . Parts Melted . | . . Heat Transferred 777 | 222 555 Parts Sabotaged . | . . Parts Stolen . | . . Parts Stripped . | . . Power Chain Reactions . | . . Missiles Intercepted . | . . Alert | -11 -10 ------- Run | Scr Mat Peak Influence 138 | 20 138 Average Influence 44 | 6 53 Maximum Alert Level . | . . Low Security (%) 100 | 100 100 Level 1 . | . . Level 2 . | . . Level 3 . | . . Level 4 . | . . Level 5 . | . . High Security . | . . Max Security . | . . Squads Dispatched 1 | . 1 Investigation . | . . Extermination . | . . Reinforcement 1 | . 1 Assault . | . . Garrison . | . . Intercept . | . . Construction Impeded . | . . Haulers Reinforced . | . . Stealth | -11 -10 --------- Run | Scr Mat Distress Signals 1 | . 1 Communications Jammed . | . . Distress Signals . | . . Times Spotted 15 | . 15 Peak Tracking Total 7 | . 7 Tactical Retreats 2 | . 2 Traps | -11 -10 ------- Run | Scr Mat Traps Triggered . | . . Indirectly . | . . Trap Hack Attempts . | . . Triggered . | . . Disarmed . | . . Reprogrammed . | . . Reused . | . . Traps Extracted . | . . Installed . | . . Triggered . | . . Machines | -11 -10 ---------- Run | Scr Mat Machines Disabled 1 | . 1 Max in Single Turn 1 | . 1 Machines Sabotaged . | . . Garrisons Compromised . | . . Overloaded Fab Kills . | . . Fab Network Shutdowns . | . . Hacking | -11 -10 --------- Run | Scr Mat Machines Accessed 1 | . 1 Terminals 1 | . 1 Fabricators . | . . Repair Stations . | . . Recycling Units . | . . Scanalyzers . | . . Garrison Access . | . . Total Hacks 3 | . 3 Successful 1 | . 1 Failed 2 | . 2 Catastrophic . | . . Database Lockouts . | . . Manual 3 | . 3 Terminals 3 | . 3 Fabricators . | . . Repair Stations . | . . Recycling Units . | . . Scanalyzers . | . . Garrison Access . | . . Terminal Hacks . | . . Fabricator Hacks . | . . Repair Station Hacks . | . . Recycling Unit Hacks . | . . Scanalyzer . | . . Garrison Access Hacks . | . . Unauthorized Hacks 2 | . 2 Terminals 1 | . 1 Botnet 1 | . 1 Fabricators . | . . Repair Stations . | . . Recycling Units . | . . Scanalyzers . | . . Garrison Access . | . . Data Cores Recovered . | . . Used . | . . Hacking Detections 1 | . 1 Full Trace Events . | . . Feedback Events . | . . Feedback Blocked . | . . Robot Schematics Acquired . | . . Robots Built . | . . Matter . | . . Time . | . . Total Robot Build Rating . | . . Part Schematics Acquired . | . . Parts Built . | . . Matter . | . . Time . | . . Total Part Build Rating . | . . Parts Repaired . | . . Time . | . . Parts Recycled . | . . Recycled Matter . | . . Retrieved Matter . | . . Retrieved Components . | . . Parts Scanalyzed . | . . Part Schematics Acquired . | . . Parts Damaged . | . . Bothacking | -11 -10 ------------ Run | Scr Mat Used RIF Installer . | . . Robots Hacked . | . . Non-combat . | . . Combat . | . . Robot Hacks Applied . | . . Relay Couplers Released . | . . Robots Rewired . | . . Allies Hacked . | . . Hacks Repelled . | . . Allies | -11 -10 -------- Run | Scr Mat Total Allies . | . . Largest Group . | . . Highest-Rated Group . | . . Highest-Rated Ally . | . . Total Orders . | . . Ally Attacks . | . . Total Damage . | . . Kills . | . . Allies Corrupted . | . . Allies Melted . | . . Intel | -11 -10 ------- Run | Scr Mat Robot Analysis Total . | . . Derelict Logs Recovered . | . . Drone Launches . | . . Drone Recoveries . | . . Exploration | -11 -10 ------------- Run | Scr Mat Turns Passed 452 | 85 367 Spaces Moved 257 | 51 206 Core 12 | 11 1 Treads . | . . Legs . | . . Wheels 245 | 40 205 Hover . | . . Flight . | . . Fastest Speed 50 | 50 90 Average Speed 89 | 81 90 Slowest Speed 150 | 100 150 Overloaded Moves . | . . Propulsion Burnouts . | . . Robots Hopped . | . . Cave-ins Triggered . | . . Exploration Rate (%) 21 | 4 38 Regions Visited 1 Branch Regions . Pre-discovered Areas . | . . Known Exits Taken . | . . Unknown Exits Taken 1 | 1 . Scrap Searched . | . . Spaces Dug . | . . Terrain Destroyed . | . . Melee . | . . Projectile . | . . AOE . | . . Actions | -11 -10 --------- Run | Scr Mat Total 408 | 76 332 Wait 74 | . 74 Move 256 | 50 206 Hop . | . . Pick Up 14 | 9 5 Fast Attach . | . . Attach 12 | 6 6 Detach . | . . Swap 4 | 2 2 Drop 3 | . 3 Fire 29 | 9 20 Melee 16 | . 16 Ram . | . . Kick . | . . Crush . | . . Escape Stasis . | . . Rewire . | . . Trap . | . . Miscellaneous . | . . Route ------- -11/Scrapyard -10/Materials (discovered 1 exit: [*Min]) History --------- Turn | Location | Event 7 | -11/Scrapyard | Discovered new exit (range 16) 86 | -11/Scrapyard | Entered Materials 300 | -10/Materials | Build established: Mutant 302 | -10/Materials | Discovered new exit (range 12) 429 | -10/Materials | Core integrity fell below 50% 431 | -10/Materials | Core integrity fell below 20% 453 | -10/Materials | Destroyed by G-34 Mercenary with Small Laser Last Messages --------------- 00425_ Destroyed Com. Wheel. 00425_ R-06 Scavenger system corrupted by crushing effect. 00425_ R-06 Scavenger knocked back. 00425_ Com. Wheel destroyed. 00427_ Lgt. Ion Engine destroyed. 00428_ Destroyed Lgt. Ion Engine. 00428_ R-06 Scavenger system corrupted by crushing effect. 00428_ R-06 Scavenger collects Sml. Laser. 00429_ R-06 Scavenger system terminally corrupted. 00429_ Sml. Storage Unit fried. 00432_ Imp. Terrain Scanner destroyed. 00432_ R-06 Scavenger collects Aluminum Leg. 00435_ R-06 Scavenger collects Heat Sink. 00436_ Destroyed Flight Unit. 00436_ S-10 Pest system corrupted by crushing effect. 00437_ S-10 Pest system terminally corrupted. 00437_ Lgt. Ion Engine fried. 00439_ R-06 Scavenger collects Ion Engine. 00440_ Com. Wheel destroyed. 00451_ G-34 Mercenary knocked back. Map ----- +----------------------------------------------------+ | ??????????????????????????# ????"??# #??#??##### | | ???????????????????????????????????# #?##### = | | ???????????????????????????????????# #?# + | | ???????????????????????????????? ?## ### # | | ????????????????????????########+## ## # """ | | ????????????????????????# # """ | | ????????????????????????# T + """ | | ????????????????????????# # | | ????????????????????????# """ ## ### ## """ | | ??????????????????####### """ ####+##### ## """ | | ????????????????? """ # # ## """ | | ????????????????? + """ # ## | | ????????????????? # """ #+###### | | ????????????????????#######+#### # """ # | | ????????????????????????#??????# # # | | ????????????????????????#??? ??# # """ # * | | ?????????????????????????? ????# # """ # ** | | ??????????????? ?????? ????????# # """ # | | ????????????#??? ###+####??????# # #"" """ | | ?????????????#?? T #????### ##########"Y """ | | ????????????????? ??????# #??#######"" """ | | ????????????????? ########+#### ## % | | ????????????????? """ # # #####+### | | ?????????????????""""" # % # ##?# #? | | ?????????????????""""" %#=% # #### #? | | ?????????????????"""""!g/@" "" """" # + ## | | ???????????????? """ [#="""" """" # ""# #? | | ??????????????? w # """" """" # Y"# #? | | ????????????? # # ""# #? | | ????????????" """ ############# # ## | | ????????????" """"" #????#???######### #? | | ??????????? """"" #??????#?# + % #? | | ?????????? ??""""" #?#??#?#?# ##### #? | | ???????????##??????"" #??#?????#""" #?#?# #? | | ???????????? ??????? ?????###?#""" ##??# #? | | ???????????????????? ??#?????##""" #???#^ #? | | ????????????????????" ??? ??##?# #???# #? | | ????????????????????"" ????????###+#+####### #? | | ??????????????????"?"" ??? ??##### #? | | ?????????????????????? ?? ???#== ## | | ?????????????????????? ??????#== #? | | ?????????????????????? ???????#// ###+####### #? | | ??????????????????????????????#/ # #??# #? | | ??????????????????????????????#]] # ##?# #? | | ??????????????????????????????#][[# """ #?## #? | | ????????????????????? ? ??????##### """ #??# ## | | ??????????????????????????????????# """ #??# # | | ??????????????????????????????????# #??# # | | ??????????????????????????????????########??# # | | ?????????????????????????????#??????????????# # | +----------------------------------------------------+ Best States ------------- Heat Dissipation 25 Energy Generation 10 Energy Capacity 125 Matter Stores 300 Matter Capacity 300 Sight Range 16 Terrain Scan Range 16 Terrain Scan Density 10 ECM Strength 1 Evasion (%) 50 Item Schematics ----------------- None Robot Schematics ------------------ None Fabricated ------------ Nothing Alien Tech Used ----------------- None Achievements -------------- None Challenges ------------ None Game ------ Seed DeepIonicShockpuncher Manual? 0 Play Time 00:08:46 Cumulative 31.9 hours Start 2019.11.21 @ 18:13:33 End 2019.11.21 @ 18:21:15 Sessions 1 Manual Loads 0 Difficulty Rogue Special Mode None Game No. 43 Rogue 43 Adventurer 0 Explorer 0 Win Type - Total 0 Types 0/0/0/0/0/0/0 Lore% 21 Gallery% 18 Achievement% 19 Wizard Run 0 Options --------- ASCII 0 Keyboard 0 Movement Arrows Keybinds 0 Fullscreen 1 Font 18/X11 Map View 76x50 Tactical HUD 1 Map Filters NONE Filters LOW_CONTRAST(13,24,33) Steam 1 RUN: 560408a1-9499-4a56-86bd-3682171a1711